[Event "4th Memorial Warakomska-B 2020"]
[Site "Suwalki"]
[Date "2020.08.07"]
[Round "2.6"]
[White "Widelski, Kacper"]
[Black "Pieczulis, Blazej"]
[Result "1-0"]
[ECO "E07"]
[WhiteElo "1879"]
[BlackElo "1608"]
[Annotator "NA"]
[PlyCount "103"]
[EventDate "2020.08.06"]
[EventType "swiss"]
[EventCountry "POL"]
[SourceTitle "playchess.com"]
[Source "ChessBase"]
[SourceQuality "1"]
[TimeControl "40/5400+30:1800+30"]

{[%evp 8,79,15,11,26,8,12,-8,17,-4,6,-26,-7,8,7,-24,-15,-61,8,10,14,9,11,4,7,3,14,8,6,32767,62,32767,32767,32767,32767,93,32767,32767,32767,107,108,113,110,32767,32767,110,32767,191,700,32767,32767,32767,32767,32767,32767,196,184,32767,32767,32767,32767,66,32767,6079,32767,32767,32767,12420,32767,29940,32767,29970,29964,29974]} 1. c4 {[%emt 0:00:00]} Nf6 {[%emt 0:00:00]} 2. g3 {[%emt 0:00:06]} e6 {[%emt 0:00:47]} 3. Bg2 {[%emt 0:00:11]} Be7 {[%emt 0:00:37]} 4. Nf3 {[%emt 0:01:33]} O-O {[%emt 0:00:54]} 5. O-O {[%emt 0:00:23]} d5 {[%emt 0:01:53]} 6. d4 {[%emt 0:00:48]} Nbd7 {[%emt 0:02:38]} 7. Nc3 {[%emt 0:06:48]} c6 {[%emt 0:02:51]} 8. e3 {[%emt 0:02:10]} dxc4 {[%emt 0:02:05]} 9. Nd2 {[%emt 0:17:36] E07: Closed Catalan: Main Line (5 Nf3 0-0 6 0-0 Nbd7).} e5 {[%emt 0:07:09]} 10. Nxc4 {[%emt 0:08:57]} exd4 {[%emt 0:00:37] [#]} 11. Qxd4 $146 {[%emt 0:07:03]} ({Predecessor:} 11. exd4 Nb6 12. Ne5 Be6 13. Re1 Nbd5 14. Bg5 h6 15. Bxf6 Bxf6 16. Qd2 Nxc3 17. bxc3 {½-½ (47) Jakovljevic,V (2420)-Schartz,A (2202) Budva 2009}) 11... Nb6 {[%emt 0:03:44]} 12. Nxb6 {[%emt 0:07:14]} Qxd4 {[%emt 0:01:03]} (12... axb6 $15 13. Rd1 Bg4) 13. exd4 {[%emt 0:00:36]} axb6 {[%emt 0:00:07]} 14. d5 {[%emt 0:01:27]} cxd5 {[%emt 0:08:48]} 15. Nxd5 {[%emt 0:02:31]} Nxd5 {[%emt 0:04:21]} 16. Bxd5 {[%emt 0:00:16]} Ra5 {[%emt 0:00:28]} 17. Be4 {[%emt 0:10:55]} Be6 {[%emt 0:06:55]} 18. a3 {[%emt 0:02:44]} Bc4 {[%emt 0:07:54]} 19. Re1 {[%emt 0:04:35]} Bb4 {[%emt 0:07:46]} 20. Rd1 {[%emt 0:02:17]} Bb3 {[%emt 0:03:48]} 21. Bd2 {[%emt 0:03:59]} Bxd2 {[%emt 0:09:32]} 22. Rxd2 {[%emt 0:00:07]} Re5 {[%emt 0:00:59]} 23. Bxb7 {[%emt 0:01:41]} g6 {[%emt 0:00:23]} 24. Rc1 {[%emt 0:01:44]} Rfe8 {[%emt 0:00:41]} 25. Rc8 {[%emt 0:03:47]} Rxc8 {[%emt 0:00:34]} 26. Bxc8 {[%emt 0:00:02]} Bd5 {[%emt 0:00:22]} 27. f4 {[%emt 0:00:18]} Re1+ {[%emt 0:00:48]} 28. Kf2 {[%emt 0:00:08]} Rc1 {[%emt 0:00:04]} 29. Rxd5 {[%emt 0:00:34]} Rxc8 {[%emt 0:00:04]} 30. Rb5 {[%emt 0:00:52]} Rc6 {[%emt 0:00:19]} 31. a4 {[%emt 0:03:39]} Kg7 {[%emt 0:00:11]} 32. b4 {[%emt 0:00:44]} Kf6 {[%emt 0:00:14]} 33. a5 {[%emt 0:00:12]} bxa5 {[%emt 0:00:26]} 34. bxa5 {[%emt 0:00:29]} Ke6 {[%emt 0:00:16]} 35. Rb6 {[%emt 0:01:17]} Rxb6 {[%emt 0:06:02]} 36. axb6 {[%emt 0:00:02]} Kd6 {[%emt 0:00:08]} 37. Ke3 {[%emt 0:00:14]} Kc6 {[%emt 0:00:03]} 38. Ke4 {[%emt 0:00:30]} f6 {[%emt 0:00:06] [#]} 39. b7 $1 {[%emt 0:00:15]} Kxb7 {[%emt 0:00:04]} 40. Kd5 {[%emt 0:00:00]} Kc7 {[%emt 0:00:00]} 41. Ke6 {[%emt 0:01:10]} f5 {[%emt 0:01:12]} 42. Kf7 {[%emt 0:00:54]} Kd7 {[%emt 0:00:35]} 43. Kg7 {[%emt 0:00:35]} Ke7 {[%emt 0:00:34]} 44. Kxh7 {[%emt 0:00:34]} Kf7 {[%emt 0:00:40]} 45. Kh6 {[%emt 0:00:41]} Kf6 {[%emt 0:00:36]} 46. h4 {[%emt 0:00:40]} Kf7 {[%emt 0:00:45]} 47. h5 {[%emt 0:00:41]} gxh5 {[%emt 0:00:51]} 48. Kxh5 {[%emt 0:00:35]} Kf6 {[%emt 0:00:42]} 49. Kh6 {[%emt 0:00:35]} Kf7 {[%emt 0:00:38]} 50. Kg5 {[%emt 0:00:34]} Ke6 {[%emt 0:00:36]} 51. Kg6 {[%emt 0:00:33]} Ke7 {[%emt 0:00:35]} 52. Kxf5 {[%emt 0:00:34]} 1-0

[Event "4th Memorial Warakomska-B 2020"]
[Site "Suwalki"]
[Date "2020.08.07"]
[Round "2.7"]
[White "Lukasik, Zuzanna"]
[Black "Cwiek, Ryszard"]
[Result "1/2-1/2"]
[ECO "C06"]
[WhiteElo "1553"]
[BlackElo "1867"]
[Annotator "NA"]
[PlyCount "167"]
[EventDate "2020.08.06"]
[EventType "swiss"]
[EventCountry "POL"]
[SourceTitle "playchess.com"]
[Source "ChessBase"]
[SourceQuality "1"]
[TimeControl "40/5400+30:1800+30"]

1. e4 {[%emt 0:00:00]} e6 {[%emt 0:00:00]} 2. d4 {[%emt 0:00:07]} d5 {[%emt 0:00:00]} 3. Nd2 {[%emt 0:00:12]} Nf6 {[%emt 0:00:22]} 4. e5 {[%emt 0:00:07]} Nfd7 {[%emt 0:00:13]} 5. Bd3 {[%emt 0:01:35]} c5 {[%emt 0:00:10]} 6. c3 {[%emt 0:00:19]} Nc6 {[%emt 0:01:51]} 7. Ne2 {[%emt 0:01:51]} cxd4 {[%emt 0:13:23]} 8. cxd4 {[%emt 0:00:20]} f6 {[%emt 0:16:07]} 9. exf6 {[%emt 0:01:42]} Nxf6 {[%emt 0:00:12]} 10. Nf3 {[%emt 0:02:30]} Bd6 {[%emt 0:00:26]} 11. O-O {[%emt 0:01:25]} O-O {[%emt 0:00:33]} 12. Bg5 {[%emt 0:03:46]} Qe8 {[%emt 0:06:58]} 13. Re1 {[%emt 0:06:58] C06: French Tarrasch: 3...Nf6 4 e5 Nfd7 5 Bd3 main lines.} Ne4 {[%emt 0:21:41] [#]} 14. Be3 $146 {[%emt 0:15:23]} ({Predecessor:} 14. Bh4 Bb4 15. Rf1 Rxf3 16. Bxe4 dxe4 17. gxf3 exf3 18. Nc3 Qh5 19. Bg3 Nxd4 20. Kh1 e5 {0-1 (37) Koedijk,K (1681)-Rupert,C (2036) Groningen 2018}) 14... Qh5 {[%emt 0:07:04]} 15. Ng3 {[%emt 0:03:45]} Nxg3 {[%emt 0:05:23]} 16. fxg3 {[%emt 0:01:04]} Be7 {[%emt 0:04:43]} 17. Bf4 {[%emt 0:06:00]} Bf6 {[%emt 0:00:29]} 18. Bb5 {[%emt 0:05:04]} Bd7 {[%emt 0:04:26]} 19. Bxc6 {[%emt 0:02:01]} bxc6 {[%emt 0:00:01]} 20. Ne5 {[%emt 0:02:21]} Qxd1 {[%emt 0:00:10]} 21. Raxd1 {[%emt 0:00:14]} Be8 {[%emt 0:05:07]} 22. Rc1 {[%emt 0:02:42]} Rc8 {[%emt 0:00:20]} 23. Bd2 {[%emt 0:02:25]} Rb8 {[%emt 0:02:11]} 24. Bc3 {[%emt 0:01:22]} Be7 {[%emt 0:01:28]} 25. Nd3 {[%emt 0:05:49]} Rf6 {[%emt 0:00:19]} 26. a3 {[%emt 0:02:41]} a5 {[%emt 0:02:50]} 27. Bxa5 {[%emt 0:04:07]} Bg6 {[%emt 0:00:06]} 28. Bb4 {[%emt 0:02:15]} Bxd3 {[%emt 0:01:13]} 29. Bxe7 {[%emt 0:00:08]} Rg6 {[%emt 0:00:16]} 30. b4 {[%emt 0:04:33]} ({Don't take} 30. Rxc6 $6 Rxb2 31. Rc8+ Kf7 $14) ({White should try} 30. Rc3 $18 Rb7 31. Bb4 (31. Rxd3 Rxe7 32. Rc3 Rg4 $18)) 30... Bb5 {[%emt 0:00:12]} 31. Re3 {[%emt 0:00:56]} Kf7 {[%emt 0:00:51]} 32. Bd6 {[%emt 0:00:35]} Rd8 {[%emt 0:00:18]} 33. Be5 {[%emt 0:00:23]} Rg4 {[%emt 0:01:12]} 34. h3 {[%emt 0:03:57]} Rg6 {[%emt 0:01:32]} 35. Rc2 {[%emt 0:01:04]} Ra8 {[%emt 0:00:49]} 36. Rf3+ {[%emt 0:00:58]} Kg8 {[%emt 0:00:23]} 37. Rcf2 {[%emt 0:01:51]} h5 {[%emt 0:00:21]} 38. Bd6 {[%emt 0:01:18]} Kh7 {[%emt 0:00:49]} 39. Re3 {[%emt 0:00:31]} Kg8 {[%emt 0:00:44]} 40. Be5 {[%emt 0:01:03]} Bc4 {[%emt 0:00:00]} 41. Rc2 {[%emt 0:01:09]} Bb5 {[%emt 0:01:15]} 42. Ra2 {[%emt 0:01:04]} Ba4 {[%emt 0:01:24]} 43. Bf4 {[%emt 0:00:56]} Rf6 {[%emt 0:03:08]} 44. Re5 {[%emt 0:01:44]} g6 {[%emt 0:00:10]} 45. Rae2 {[%emt 0:02:47]} Kf7 {[%emt 0:01:19]} 46. h4 {[%emt 0:02:54]} Re8 {[%emt 0:01:05]} 47. Bg5 {[%emt 0:01:16]} Rf5 {[%emt 0:00:05]} 48. Rf2 {[%emt 0:00:21]} Ra8 {[%emt 0:02:43]} 49. Re3 {[%emt 0:01:13]} Bb5 {[%emt 0:00:57]} 50. Bf4 {[%emt 0:00:56]} Ba4 {[%emt 0:01:18]} 51. Rd2 {[%emt 0:00:32]} Bb5 {[%emt 0:00:28]} 52. Kh2 {[%emt 0:00:56]} Ke7 {[%emt 0:01:23]} 53. Rd1 {[%emt 0:01:43]} Kd7 {[%emt 0:02:32]} 54. Kh3 {[%emt 0:02:41]} Rff8 {[%emt 0:03:38]} 55. Rde1 {[%emt 0:01:00]} Rae8 {[%emt 0:01:52]} 56. Rf3 {[%emt 0:00:44]} Rf5 {[%emt 0:02:43]} 57. g4 {[%emt 0:04:57]} hxg4+ {[%emt 0:00:03]} 58. Kxg4 {[%emt 0:00:16]} Ref8 {[%emt 0:00:41]} 59. Be5 {[%emt 0:03:42]} Rxf3 {[%emt 0:00:33]} 60. gxf3 {[%emt 0:00:10]} Bd3 {[%emt 0:01:06]} 61. Re3 {[%emt 0:01:42]} Bf5+ {[%emt 0:01:03]} 62. Kg5 {[%emt 0:00:48]} Ra8 {[%emt 0:00:27]} 63. Rc3 {[%emt 0:01:54]} Ra7 {[%emt 0:01:13]} 64. Kf6 {[%emt 0:01:59]} Ra8 {[%emt 0:01:23]} 65. f4 {[%emt 0:01:48]} Rf8+ {[%emt 0:01:53]} 66. Kg7 {[%emt 0:01:43]} Ra8 {[%emt 0:00:04] [#]} 67. Kf7 $1 {[%emt 0:01:29]} Ra7 {[%emt 0:00:57]} 68. Kf6 {[%emt 0:00:45]} Ra8 {[%emt 0:00:09]} 69. Kf7 {[%emt 0:01:40]} (69. Rg3 $16) 69... Ra7 {[%emt 0:00:05]} 70. Rg3 {[%emt 0:01:44]} Ra8 {[%emt 0:00:41]} 71. Rc3 {[%emt 0:01:42]} Ra7 $1 {[%emt 0:00:36]} 72. Rg3 {[%emt 0:00:31]} Ra8 {[%emt 0:00:05]} 73. Kg7 {[%emt 0:02:15]} Ra7 {[%emt 0:00:15]} 74. Kh6 {[%emt 0:00:15]} Ra4 {[%emt 0:06:44]} 75. h5 {[%emt 0:00:52]} gxh5 {[%emt 0:00:04]} 76. Kxh5 {[%emt 0:00:08]} Kd8 {[%emt 0:01:02]} 77. Kg5 {[%emt 0:03:01]} Kc8 {[%emt 0:00:14]} (77... Ke7 $16 78. Rc3 Ra6) 78. Kf6 {[%emt 0:00:19]} Kb7 {[%emt 0:00:12]} 79. Ke7 {[%emt 0:00:29]} Ra8 $1 $11 {[%emt 0:01:00] and Black has nothing to worry.} 80. Kd7 {[%emt 0:02:39]} Kb6 {[%emt 0:03:05]} 81. Ke7 $2 {[%emt 0:02:00]} (81. Rc3 $18) 81... Ra7+ $2 {[%emt 0:01:22]} 82. Kf6 {[%emt 0:00:52]} Kb5 {[%emt 0:00:51]} 83. Rc3 {[%emt 0:00:34]} Bg4 {[%emt 0:02:03]} 84. Rg3 $11 {[%emt 0:01:37]} (84. Bb8 $18 Rb7 85. Bd6) 1/2-1/2

[Event "4th Memorial Warakomska-B 2020"]
[Site "Suwalki"]
[Date "2020.08.07"]
[Round "2.8"]
[White "Wierzbicki, Michal"]
[Black "Racis, Michal"]
[Result "1-0"]
[ECO "D37"]
[WhiteElo "1849"]
[BlackElo "1273"]
[Annotator "NA"]
[PlyCount "47"]
[EventDate "2020.08.06"]
[EventType "swiss"]
[EventCountry "POL"]
[SourceTitle "playchess.com"]
[Source "ChessBase"]
[SourceQuality "1"]
[TimeControl "40/5400+30:1800+30"]

{[%evp 9,35,23,32,22,52,32767,32767,32767,52,32767,32767,29,35,22,129,127,32767,32767,129,123,141,138,144,142,181,160,166,148]} 1. d4 {[%emt 0:00:00]} d5 {[%emt 0:00:00]} 2. Nf3 {[%emt 0:00:00]} Nf6 {[%emt 0:00:02]} 3. c4 {[%emt 0:00:00]} e6 {[%emt 0:00:29]} 4. Nc3 {[%emt 0:03:03]} Be7 {[%emt 0:09:24]} 5. Bf4 {[%emt 0:07:39]} c6 {[%emt 0:01:48]} 6. e3 {[%emt 0:00:41]} b6 {[%emt 0:03:47]} 7. Qc2 {[%emt 0:05:31]} Bb7 {[%emt 0:01:32]} 8. cxd5 {[%emt 0:01:40]} exd5 {[%emt 0:03:40]} 9. Bd3 {[%emt 0:01:56]} Nbd7 {[%emt 0:01:58]} 10. h3 {[%emt 0:05:44]} O-O {[%emt 0:01:01]} 11. Ne5 {[%emt 0:17:56]} Rc8 {[%emt 0:06:06]} (11... Re8 $11 {remains equal.}) 12. Nxd7 {[%emt 0:01:29]} Qxd7 {[%emt 0:01:42]} 13. Bf5 {[%emt 0:00:04]} Qd8 {[%emt 0:03:05]} 14. Bxc8 {[%emt 0:00:29]} Qxc8 {[%emt 0:01:20]} 15. O-O {[%emt 0:00:41]} Qe6 {[%emt 0:04:23]} 16. Rfe1 {[%emt 0:04:07]} Nh5 {[%emt 0:03:32]} 17. Bh2 {[%emt 0:12:27]} f5 {[%emt 0:02:24]} 18. Ne2 $16 {[%emt 0:02:17]} g5 {[%emt 0:19:30]} 19. Be5 {[%emt 0:14:34]} Bf6 {[%emt 0:09:27]} 20. Bxf6 {[%emt 0:00:22]} Rxf6 {[%emt 0:01:27]} 21. Ng3 {[%emt 0:07:32]} Ng7 {[%emt 0:01:30]} 22. f3 {[%emt 0:07:29]} Qd6 {[%emt 0:01:18]} 23. Nf1 {[%emt 0:00:40]} Ba6 {[%emt 0:17:02]} 24. Rad1 {[%emt 0:01:56]} 1-0

[Event "4th Memorial Warakomska-B 2020"]
[Site "Suwalki"]
[Date "2020.08.07"]
[Round "2.9"]
[White "Borowik, Karol"]
[Black "Kaminski, Maciej"]
[Result "0-1"]
[ECO "E92"]
[WhiteElo "1426"]
[BlackElo "1869"]
[Annotator "NA"]
[PlyCount "78"]
[EventDate "2020.08.06"]
[EventType "swiss"]
[EventCountry "POL"]
[SourceTitle "playchess.com"]
[Source "ChessBase"]
[SourceQuality "1"]
[TimeControl "40/5400+30:1800+30"]

{[%evp 8,65,59,42,41,29,27,52,21,28,69,45,46,44,58,8,44,49,54,0,-6,0,0,0,0,0,0,0,31,23,18,32767,30,-41,32767,32767,32767,32767,32767,32767,32767,32767,32767,32767,32767,32767,32767,-48,32767,-67,32767,-55,32767,32767,-52,32767,-76,32767,-70,-71]} 1. d4 {[%emt 0:00:00]} Nf6 {[%emt 0:00:00]} 2. Nf3 {[%emt 0:00:00]} g6 {[%emt 0:00:00]} 3. c4 {[%emt 0:00:01]} Bg7 {[%emt 0:00:00]} 4. Nc3 {[%emt 0:00:06]} O-O {[%emt 0:00:00]} 5. e4 {[%emt 0:00:28]} d6 {[%emt 0:00:06]} 6. Be2 {[%emt 0:00:12]} e5 {[%emt 0:00:08]} 7. d5 {[%emt 0:03:07]} a5 {[%emt 0:00:06]} 8. O-O {[%emt 0:01:11]} h6 {[%emt 0:02:47] E92: King's Indian: Classical: 6 Be2 e5: 7 dxe5, 7 Be3 and Petrosian System without 7...Nbd7.} 9. Ne1 {[%emt 0:06:34]} Na6 {[%emt 0:06:53]} 10. Be3 {[%emt 0:08:39]} Bd7 {[%emt 0:07:02]} 11. a3 {[%emt 0:07:25]} b6 {[%emt 0:03:38]} 12. Nd3 {[%emt 0:05:17]} Nc5 {[%emt 0:02:45] [#]} 13. Bxc5 $146 {[%emt 0:11:35]} (13. Nxc5 $14 bxc5 14. Qd2) ({Predecessor:} 13. f3 Ne8 14. b4 axb4 15. axb4 Rxa1 16. Qxa1 Nb3 17. Qb2 Nd4 18. c5 f5 19. Rd1 {1-0 (42) Antonova,N (2011)-Faqeeh,A (1599) Al Ain 2015}) 13... bxc5 {[%emt 0:00:36]} 14. b4 {[%emt 0:03:06]} axb4 {[%emt 0:07:30]} 15. axb4 {[%emt 0:00:23]} cxb4 {[%emt 0:02:23]} 16. Nxb4 {[%emt 0:00:55]} Rxa1 {[%emt 0:00:28]} 17. Qxa1 {[%emt 0:00:02]} Ne8 {[%emt 0:00:57]} 18. Qa6 {[%emt 0:17:36]} Qg5 {[%emt 0:03:09]} 19. Qa2 {[%emt 0:11:58]} f5 {[%emt 0:01:51]} 20. Nd3 {[%emt 0:03:11]} ({White should play} 20. Na6 $11) 20... fxe4 {[%emt 0:06:04]} 21. Nxe4 {[%emt 0:00:18]} Qh4 {[%emt 0:00:16]} 22. f3 {[%emt 0:05:41]} Bf5 {[%emt 0:02:06]} 23. Ndf2 {[%emt 0:00:49]} Bxe4 {[%emt 0:06:13]} 24. Nxe4 {[%emt 0:00:12]} Nf6 {[%emt 0:00:45]} 25. Bd3 {[%emt 0:02:45]} Qf4 {[%emt 0:07:20]} 26. Qd2 {[%emt 0:02:27]} Nd7 {[%emt 0:01:10]} 27. Qxf4 {[%emt 0:01:13]} (27. Qe2 $14) 27... exf4 {[%emt 0:00:07]} 28. Rb1 {[%emt 0:01:29]} Bd4+ {[%emt 0:00:48]} 29. Kf1 {[%emt 0:01:29]} Ne5 {[%emt 0:00:39]} 30. Be2 {[%emt 0:00:03]} Ra8 {[%emt 0:00:59]} 31. Nf6+ {[%emt 0:05:59]} Kg7 {[%emt 0:02:20]} 32. Ng4 {[%emt 0:00:02]} Nxg4 {[%emt 0:05:44]} 33. fxg4 $17 {[%emt 0:00:01]} Kf6 {[%emt 0:00:10]} 34. h3 {[%emt 0:00:04]} Ra2 {[%emt 0:01:07]} 35. Bd3 {[%emt 0:02:14]} Rf2+ {[%emt 0:00:29]} 36. Ke1 {[%emt 0:00:26]} Rxg2 {[%emt 0:00:10]} 37. Bf1 {[%emt 0:00:25]} Bc3+ {[%emt 0:01:21]} 38. Kd1 {[%emt 0:00:10]} Rf2 {[%emt 0:00:13]} 39. Be2 {[%emt 0:00:50]} f3 {[%emt 0:00:10]} 0-1

[Event "4th Memorial Warakomska-B 2020"]
[Site "Suwalki"]
[Date "2020.08.07"]
[Round "2.10"]
[White "Milewski, Karol"]
[Black "Stefaniuk, Zbigniew"]
[Result "0-1"]
[ECO "A53"]
[WhiteElo "1795"]
[BlackElo "1538"]
[Annotator "NA"]
[PlyCount "84"]
[EventDate "2020.08.06"]
[EventType "swiss"]
[EventCountry "POL"]
[SourceTitle "playchess.com"]
[Source "ChessBase"]
[SourceQuality "1"]
[TimeControl "40/5400+30:1800+30"]

1. d4 {[%emt 0:00:00]} Nf6 {[%emt 0:00:00]} 2. c4 {[%emt 0:00:07]} d6 {[%emt 0:00:01]} 3. Nc3 {[%emt 0:00:23]} e5 {[%emt 0:00:29]} 4. dxe5 {[%emt 0:02:10]} dxe5 {[%emt 0:00:30]} 5. Qxd8+ {[%emt 0:03:00]} Kxd8 {[%emt 0:00:05]} 6. Nf3 {[%emt 0:01:08]} Nbd7 {[%emt 0:01:01]} 7. g3 {[%emt 0:03:36]} c6 {[%emt 0:03:22]} 8. Bg2 {[%emt 0:02:24]} Bb4 {[%emt 0:01:21]} 9. O-O {[%emt 0:05:10]} Bxc3 {[%emt 0:07:07]} 10. bxc3 {[%emt 0:01:04]} h6 {[%emt 0:05:26]} 11. Rd1 {[%emt 0:01:42]} Kc7 {[%emt 0:01:42]} 12. Ba3 {[%emt 0:05:06]} Ne4 {[%emt 0:03:44]} 13. Nxe5 {[%emt 0:13:45]} Nxe5 {[%emt 0:04:55]} 14. Bxe4 {[%emt 0:00:49]} Nxc4 {[%emt 0:00:14]} 15. Bc5 {[%emt 0:07:19]} Be6 {[%emt 0:15:16]} 16. Bd4 {[%emt 0:12:28]} f6 {[%emt 0:03:50]} 17. Bg2 {[%emt 0:02:55]} Rhd8 {[%emt 0:04:49]} 18. f3 {[%emt 0:13:45]} Rd7 {[%emt 0:04:18]} 19. Bf2 {[%emt 0:01:22]} Rad8 {[%emt 0:03:51]} 20. Rd4 {[%emt 0:00:27]} b6 {[%emt 0:07:02]} 21. a4 {[%emt 0:11:41]} c5 {[%emt 0:01:48]} 22. Rxd7+ {[%emt 0:00:19]} Rxd7 {[%emt 0:00:19]} 23. a5 {[%emt 0:01:22]} Rd2 {[%emt 0:09:16]} 24. axb6+ {[%emt 0:00:10]} Kxb6 {[%emt 0:01:55]} 25. Kf1 {[%emt 0:03:05]} a5 {[%emt 0:02:07]} 26. Ke1 {[%emt 0:02:46]} Rc2 {[%emt 0:04:07]} 27. Kd1 {[%emt 0:01:28]} Bf5 {[%emt 0:02:09]} 28. Bf1 {[%emt 0:02:57]} Nb2+ {[%emt 0:03:33]} 29. Ke1 {[%emt 0:00:05]} a4 {[%emt 0:02:11]} 30. Be3 {[%emt 0:01:49]} Rxc3 {[%emt 0:01:34]} 31. Bd2 {[%emt 0:00:33]} Rb3 {[%emt 0:01:23]} 32. g4 {[%emt 0:00:28]} Be6 {[%emt 0:01:10]} 33. Bc1 {[%emt 0:00:26]} a3 {[%emt 0:00:56]} 34. Kd2 {[%emt 0:00:10]} Nc4+ {[%emt 0:03:13]} 35. Kc2 {[%emt 0:00:12]} Ne3+ {[%emt 0:01:00]} 36. Bxe3 {[%emt 0:00:07]} Rxe3 {[%emt 0:00:13]} 37. Kd2 {[%emt 0:00:01]} Rb3 {[%emt 0:00:21]} 38. Kc2 {[%emt 0:00:38]} Bc4 {[%emt 0:01:05]} 39. e4 {[%emt 0:01:02]} Rb2+ {[%emt 0:00:12]} 40. Kc3 {[%emt 0:00:00]} Bxf1 {[%emt 0:00:00]} 41. Rxf1 {[%emt 0:00:15]} Rxh2 {[%emt 0:00:50]} 42. Ra1 {[%emt 0:00:31]} Rf2 {[%emt 0:00:39]} 0-1

[Event "4th Memorial Warakomska-B 2020"]
[Site "Suwalki"]
[Date "2020.08.07"]
[Round "2.11"]
[White "Pieczulis, Hubert"]
[Black "Milanowski, Jan"]
[Result "1/2-1/2"]
[ECO "D02"]
[WhiteElo "1486"]
[BlackElo "1787"]
[Annotator "NA"]
[PlyCount "70"]
[EventDate "2020.08.06"]
[EventType "swiss"]
[EventCountry "POL"]
[SourceTitle "playchess.com"]
[Source "ChessBase"]
[SourceQuality "1"]
[TimeControl "40/5400+30:1800+30"]

1. Nf3 {[%emt 0:00:00]} Nf6 {[%emt 0:00:00]} 2. d4 {[%emt 0:00:00]} d5 {[%emt 0:00:51]} 3. Bf4 {[%emt 0:00:32]} c6 {[%emt 0:06:37]} 4. e3 {[%emt 0:03:46]} Nh5 {[%emt 0:02:21]} 5. Bg3 {[%emt 0:00:16]} Nxg3 {[%emt 0:00:23]} 6. hxg3 {[%emt 0:00:07]} Bf5 {[%emt 0:03:10]} 7. c4 {[%emt 0:01:04]} e6 {[%emt 0:03:39]} 8. a3 {[%emt 0:02:10]} h6 {[%emt 0:00:49]} 9. Nc3 {[%emt 0:00:40]} Nd7 {[%emt 0:00:34]} 10. cxd5 {[%emt 0:03:09]} cxd5 {[%emt 0:07:43]} 11. Bd3 {[%emt 0:00:50]} Bxd3 {[%emt 0:01:23]} 12. Qxd3 {[%emt 0:00:06]} a6 {[%emt 0:06:52]} 13. O-O {[%emt 0:02:01]} Be7 {[%emt 0:05:33]} 14. Rac1 {[%emt 0:02:40]} O-O {[%emt 0:08:59]} 15. Rc2 {[%emt 0:02:58]} Nb6 {[%emt 0:02:51]} 16. Nd2 {[%emt 0:02:04]} Rc8 {[%emt 0:01:08]} 17. Rfc1 {[%emt 0:00:09]} Qd7 {[%emt 0:00:54]} 18. Na2 {[%emt 0:05:57]} Rxc2 {[%emt 0:00:56]} 19. Rxc2 {[%emt 0:01:39]} Rc8 {[%emt 0:01:41]} 20. Rxc8+ {[%emt 0:05:53]} Qxc8 {[%emt 0:00:56]} 21. Qc3 {[%emt 0:00:06]} Qd7 {[%emt 0:09:47]} 22. Nb4 {[%emt 0:01:30]} Na4 {[%emt 0:05:57]} 23. Qb3 {[%emt 0:00:20]} Qb5 {[%emt 0:01:06]} 24. Nd3 {[%emt 0:00:49]} Qxb3 {[%emt 0:03:47]} 25. Nxb3 {[%emt 0:00:11]} b6 {[%emt 0:00:12]} 26. Kf1 {[%emt 0:00:23]} Kf8 {[%emt 0:00:06]} 27. Ke2 {[%emt 0:00:05]} Ke8 {[%emt 0:00:48]} 28. Kd2 {[%emt 0:00:16]} Bd6 {[%emt 0:07:36]} 29. Kc2 {[%emt 0:00:47]} Kd7 {[%emt 0:01:26]} 30. Nd2 {[%emt 0:05:34]} b5 {[%emt 0:00:17]} 31. Nb3 {[%emt 0:01:16]} Kc6 {[%emt 0:02:05]} 32. Na5+ {[%emt 0:00:16]} Kc7 {[%emt 0:02:44]} 33. Nb3 {[%emt 0:00:08]} Kc6 {[%emt 0:02:33]} 34. Na5+ {[%emt 0:00:16]} Kc7 {[%emt 0:00:49]} 35. Nb3 {[%emt 0:00:18]} Kc6 {[%emt 0:00:27]} 1/2-1/2

[Event "4th Memorial Warakomska-B 2020"]
[Site "Suwalki"]
[Date "2020.08.07"]
[Round "2.12"]
[White "Bancarewicz, Aleks"]
[Black "Harasimczuk, Jakub"]
[Result "1-0"]
[ECO "C78"]
[WhiteElo "1781"]
[BlackElo "1400"]
[Annotator "NA"]
[PlyCount "62"]
[EventDate "2020.08.06"]
[EventType "swiss"]
[EventCountry "POL"]
[SourceTitle "playchess.com"]
[Source "ChessBase"]
[SourceQuality "1"]
[TimeControl "40/5400+30:1800+30"]

1. e4 {[%emt 0:00:00]} e5 {[%emt 0:00:00]} 2. Nf3 {[%emt 0:00:00]} Nc6 {[%emt 0:00:33]} 3. Bb5 {[%emt 0:00:00]} a6 {[%emt 0:01:06]} 4. Ba4 {[%emt 0:00:25]} Nf6 {[%emt 0:03:48]} 5. O-O {[%emt 0:00:43]} b5 {[%emt 0:02:42]} 6. Bb3 {[%emt 0:00:11]} Bc5 {[%emt 0:01:12]} 7. a4 {[%emt 0:06:45]} b4 {[%emt 0:05:11]} 8. c3 {[%emt 0:09:08]} bxc3 {[%emt 0:09:14]} 9. bxc3 {[%emt 0:01:04]} d6 {[%emt 0:11:23]} 10. d4 {[%emt 0:04:10]} exd4 {[%emt 0:04:45]} 11. cxd4 {[%emt 0:00:11]} Bb6 {[%emt 0:02:07]} 12. h3 {[%emt 0:15:26]} h6 {[%emt 0:03:13]} 13. e5 {[%emt 0:17:43]} dxe5 {[%emt 0:14:45]} 14. dxe5 {[%emt 0:00:10]} Qxd1 {[%emt 0:04:50]} 15. Rxd1 {[%emt 0:00:18]} Ng8 {[%emt 0:08:38]} 16. Ba3 {[%emt 0:10:56]} Nge7 {[%emt 0:05:22]} 17. Nc3 {[%emt 0:02:26]} Be6 {[%emt 0:02:52]} 18. Bxe6 {[%emt 0:03:17]} fxe6 {[%emt 0:00:09]} 19. Ne4 {[%emt 0:03:56]} Nd5 {[%emt 0:04:46]} 20. Rac1 {[%emt 0:00:28]} Nd8 {[%emt 0:03:47]} 21. Nc5 {[%emt 0:03:16]} Nf4 {[%emt 0:03:14]} 22. Rc4 {[%emt 0:01:02]} g5 {[%emt 0:03:18]} 23. g3 {[%emt 0:02:20]} Ng6 {[%emt 0:02:46]} 24. Nd7 {[%emt 0:00:42]} Kf7 {[%emt 0:01:27]} 25. Nf6 {[%emt 0:02:38]} Nxe5 {[%emt 0:00:19]} 26. Nxe5+ {[%emt 0:00:07]} Kxf6 {[%emt 0:00:12]} 27. Bb2 {[%emt 0:00:05]} Rf8 {[%emt 0:01:15]} 28. Nd7+ {[%emt 0:01:22]} Kf7 {[%emt 0:00:24]} 29. Nxb6 {[%emt 0:03:42]} cxb6 {[%emt 0:00:08]} 30. Rd7+ {[%emt 0:00:07]} Ke8 {[%emt 0:01:02]} 31. Rh7 {[%emt 0:01:51]} Rf7 1-0